bitfinex-derivatives/quotes_BNBF0:USTF0_20250302
["timestamp","ask_amount","ask_price","bid_price","bid_amount"]
[1740944824928,0.2933547,627.44,626.02,0.31947861]
[1740944825124,0.2933547,627.43,626.02,0.31947861]
[1740944825430,0.2933547,627.42,626.02,0.31947861]
[1740944825631,0.2933547,627.46,626.02,0.31947861]
[1740944825834,0.31874033,627.47,626.02,0.31947861]
[1740944826031,0.29331228,627.46,626.02,0.31947861]
[1740944826834,0.31875049,627.45,626.02,0.31947861]
[1740944827129,0.29331228,627.44,626.02,0.31947861]
[1740944827729,0.31876065,627.43,626.02,0.31947861]
[1740944827929,0.29331228,627.42,626.02,0.31947861]
[1740944828134,0.31877081,627.41,626.02,0.31947861]
[1740944828329,0.29331228,627.4,626.02,0.31947861]
[1740944828534,0.31878098,627.39,626.02,0.31947861]
[1740944828736,0.29331228,627.38,626.02,0.31947861]
[1740944828931,0.29331228,627.37,626.02,0.31947861]
[1740944829131,1.56379114,627.37,626.02,0.31947861]
[1740944829331,0.29333397,627.36,626.02,0.31947861]
[1740944829537,0.29333397,627.35,626.02,0.31947861]
[1740944829835,0.29333397,627.34,626.02,0.31947861]
[1740944830029,0.29333397,627.33,626.02,0.31947861]
[1740944830236,0.29333397,627.32,626.02,0.31947861]
[1740944830435,0.29333397,627.31,626.02,0.31947861]
[1740944830637,0.29333397,627.3,626.02,0.31947861]
[1740944830831,0.29333397,627.36,626.02,0.31947861]
[1740944831031,0.29333397,627.35,626.03,0.26381113]
[1740944831235,0.29333397,627.36,626.02,0.31947861]
[1740944831436,0.29333397,627.35,626.03,0.26379915]
[1740944831637,0.29333397,627.36,626.02,0.31947861]
[1740944831838,0.29333397,627.35,626.05,0.3194633]
[1740944832139,0.29333397,627.34,626.05,0.3194633]
[1740944832330,0.29333397,627.36,626.05,0.3194633]
[1740944832533,0.29333397,627.35,626.05,0.3194633]
[1740944832734,0.29333397,627.34,626.05,0.3194633]
[1740944833039,0.29333397,627.33,626.05,0.3194633]
[1740944833240,0.29333397,627.36,626.05,0.3194633]
[1740944833440,0.29333397,627.35,626.05,0.3194633]
[1740944833640,0.856,627.35,626.05,0.3194633]
[1740944833840,0.29333397,627.34,626.06,0.26372367]
[1740944834033,0.29333397,627.34,626.08,0.31944799]
[1740944834237,0.29333397,627.34,626.09,0.26372367]
[1740944834439,0.29333397,627.34,626.11,0.31943268]
[1740944845146,1.4380471,628.41,626.11,0.31943268]
[1740944845147,0.29333397,627.33,626.11,0.31943268]
[1740944845447,0.29333397,627.32,626.11,0.31943268]
[1740944845846,0.29333397,627.32,626.13,1.19666743]
[1740944846046,0.29333397,627.32,626.14,0.31941738]
[1740944846750,1.77633397,627.32,626.14,0.31941738]
[1740944847049,0.29333397,627.31,626.14,0.31941738]
[1740944848047,1.483,627.32,626.14,0.31941738]
[1740944848249,0.29327855,627.31,626.17,1.19666743]
[1740944848451,0.29327855,627.31,626.18,0.31939697]
[1740944855560,2.595,627.32,626.18,0.31939697]
[1740944862656,0.29327763,627.31,626.18,0.31939697]
[1740944864862,0.87,627.3,626.18,0.31939697]
[1740944868659,1.059,627.29,626.18,0.31939697]
[1740944870062,0.76,627.28,626.18,0.31939697]
[1740944870262,0.29325485,627.27,626.18,0.31939697]
[1740944870865,0.29324598,627.26,626.18,0.31939697]
[1740944871068,0.76,627.28,626.18,0.31939697]
[1740944871267,0.29324375,627.27,626.18,0.31939697]
[1740944871468,0.76,627.28,626.2,1.19666743]
[1740944871665,0.76,627.28,626.21,0.31938167]
[1740944875265,0.29328742,627.27,626.21,0.31938167]
[1740944877470,0.76,627.28,626.21,0.31938167]
[1740944877671,0.29332042,627.27,626.21,0.31938167]
[1740944879366,0.76,627.28,626.21,0.31938167]
[1740944884878,1.026,627.27,626.21,0.31938167]
[1740944887775,0.29326177,627.26,626.21,0.31938167]
[1740944888576,1.026,627.27,626.21,0.31938167]
[1740944891382,1.222,627.26,626.21,0.31938167]
[1740944891877,1.422,627.25,626.21,0.31938167]
[1740944895879,0.987,627.24,626.21,0.31938167]
[1740944897087,0.987,627.24,626.22,0.2636842]
[1740944897880,0.987,627.24,626.24,0.31936637]
[1740944898088,0.987,627.24,626.25,0.2636842]
[1740944898787,0.987,627.24,626.26,0.26364605]
[1740944898990,0.987,627.24,626.27,0.26364605]
[1740944899184,0.987,627.24,626.25,0.26364605]
[1740944899382,0.987,627.24,626.26,0.26364605]
[1740944899579,0.987,627.24,626.27,0.26364605]
[1740944899781,0.987,627.24,626.41,1.19666743]
[1740944900989,0.987,627.24,626.42,0.3192746]
[1740944906099,1.232,627.23,626.42,0.3192746]
[1740944917207,1.092,627.22,626.42,0.3192746]
[1740944920010,1.1,627.21,626.42,0.3192746]
[1740944921018,1.003,627.2,626.42,0.3192746]
[1740944928426,1.003,627.2,626.42,1.51594203]
[1740944930929,1.003,627.2,626.42,0.3192746]
[1740944934630,1.876,627.2,626.42,0.3192746]
[1740944940334,3.023,627.2,626.42,0.3192746]
[1740944941336,3.804,627.2,626.42,0.3192746]
[1740944948540,4.652,627.2,626.42,0.3192746]
[1740944951238,0.29330886,627.19,626.42,0.3192746]
[1740944952336,0.29330886,627.19,626.2,1.19666743]
[1740944953240,0.29332581,627.18,626.2,1.19666743]
[1740944953440,0.29332581,627.19,626.2,1.19666743]
[1740944953643,3.649,627.2,626.09,1.19666743]
[1740944954037,0.29341428,627.19,626.09,1.19666743]
[1740944954742,1.57541428,627.19,626.09,1.19666743]
[1740944954945,0.29341428,627.18,626.09,1.19666743]
[1740944956546,1.282,627.19,625.63,1.19666743]
[1740944956841,0.29340358,627.18,625.76,1.66665336]
[1740944957045,0.29340358,627.18,625.77,0.31960624]
[1740944959544,0.994,627.17,625.77,0.31960624]
[1740944959749,0.29340358,627.16,625.77,0.31960624]
[1740944961450,0.994,627.17,625.77,0.31960624]
[1740944961651,0.31889788,627.16,625.77,0.31960624]
[1740944963446,0.29348073,627.15,625.77,0.31960624]
[1740944966158,0.29343387,627.14,625.77,0.31960624]
[1740944966353,0.29343387,627.13,625.77,0.31960624]
[1740944966559,0.29343387,627.15,625.77,0.31960624]
[1740944969461,0.29337991,627.14,625.77,0.31960624]
[1740944969659,0.29337991,627.15,625.77,0.31960624]
[1740944969860,0.29337991,627.14,625.77,0.31960624]
[1740944970059,0.29337991,627.15,625.77,0.31960624]
[1740944970259,0.29337991,627.14,625.77,0.31960624]
[1740944970457,0.29337991,627.13,625.77,0.31960624]
[1740944970656,0.29337991,627.12,625.77,0.31960624]
[1740944970859,0.29337991,627.15,625.77,0.31960624]
[1740944971056,0.29337991,627.14,625.77,0.31960624]
[1740944971259,0.29337991,627.15,625.77,0.31960624]
[1740944971456,0.29337991,627.14,625.77,0.31960624]
[1740944971763,0.29337991,627.13,625.77,0.31960624]
[1740944971958,0.29337991,627.15,625.77,0.31960624]
[1740944972159,0.29337991,627.14,625.77,0.31960624]
[1740944972358,0.29337991,627.15,625.77,0.31960624]
[1740944972562,0.29337991,627.14,625.77,0.31960624]
[1740944972761,0.29337991,627.13,625.77,0.31960624]
[1740944973057,0.29337991,627.12,625.77,0.31960624]
[1740944973262,0.29337991,627.15,625.77,0.31960624]
[1740944973562,0.797,627.11,625.77,0.31960624]
[1740944973760,0.29337991,627.1,625.77,0.31960624]
[1740944976164,0.29337991,627.1,625.78,0.2639247]
[1740944976360,0.29337991,627.1,625.79,0.31959603]
[1740944976756,1.034,627.09,625.79,0.31959603]
[1740944976958,0.29337991,627.08,625.79,0.31959603]
[1740944979355,0.29346337,627.07,625.79,0.31959603]
[1740944979559,0.29346337,627.06,625.79,0.31959603]
[1740944979757,0.29346337,627.05,625.79,0.31959603]
[1740944979962,0.29346337,627.04,625.79,0.31959603]
[1740944980256,0.29346337,627.03,625.79,0.31959603]
[1740944980457,0.29346337,627.08,625.79,0.31959603]
[1740944980662,0.29346337,627.07,625.79,0.31959603]
[1740944980864,0.29346337,627.06,625.79,0.31959603]
[1740944981163,0.29346337,627.05,625.79,0.31959603]
[1740944981364,0.29346337,627.04,625.79,0.31959603]
[1740944981564,0.29346337,627.08,625.79,0.31959603]
[1740944981863,0.29346337,627.07,625.79,0.31959603]
[1740944982767,0.29347238,627.06,625.79,0.31959603]
[1740944982960,0.29347238,627.07,625.79,0.31959603]
[1740944983167,0.29347238,627.06,625.79,0.31959603]
[1740944983365,0.29347238,627.07,625.79,0.31959603]
[1740944983561,0.29347238,627.06,625.79,0.31959603]
[1740944983767,0.29347238,627.07,625.79,0.31959603]
[1740944983961,0.29347238,627.06,625.79,0.31959603]
[1740944984164,0.29347238,627.07,625.79,0.31959603]
[1740944984364,0.29347631,627.06,625.79,0.31959603]
[1740944984568,0.29347631,627.07,625.79,0.31959603]
[1740944984760,0.29347631,627.06,625.79,0.31959603]
[1740944984965,0.29347631,627.07,625.79,0.31959603]
[1740944985165,0.29347631,627.06,625.79,0.31959603]
[1740944985363,0.29347631,627.05,625.79,0.31959603]
[1740944985566,0.29347631,627.04,625.79,0.31959603]
[1740944985762,0.29347631,627.03,625.79,0.31959603]
[1740944985969,0.2934532,627.02,625.79,0.31959603]
[1740944986168,0.2934532,627.01,625.79,0.31959603]
[1740944986369,0.2934532,627.0,625.79,0.31959603]
[1740944986572,0.2934532,627.07,625.79,0.31959603]
[1740944986768,0.2934532,627.06,625.79,0.31959603]
[1740944986965,0.2934532,627.07,625.79,0.31959603]
[1740944987168,0.2934532,627.06,625.79,0.31959603]
[1740944987370,0.2934532,627.07,625.79,0.31959603]
[1740944987571,0.879,627.08,625.79,0.31959603]
[1740944987773,0.2934535,627.07,625.79,0.31959603]
[1740944990473,1.1244535,627.07,625.79,0.31959603]
[1740944990872,0.831,627.07,625.79,0.31959603]
[1740944991172,0.29347808,627.06,625.79,0.31959603]
[1740944992565,0.29347884,627.05,625.79,0.31959603]
[1740944992767,0.29347884,627.06,625.79,0.31959603]
[1740944993171,0.31895383,627.05,625.79,0.31959603]
[1740944993371,0.29347884,627.04,625.79,0.31959603]
[1740944993671,0.318964,627.03,625.79,0.31959603]
[1740944993872,0.29347884,627.02,625.79,0.31959603]
[1740944994173,0.31897417,627.01,625.79,0.31959603]
[1740944994473,0.29347884,627.0,625.79,0.31959603]
[1740944994674,0.31898435,626.99,625.79,0.31959603]
[1740944994873,0.29347884,626.98,625.79,0.31959603]
[1740944995075,0.31899452,626.97,625.79,0.31959603]
[1740944995375,0.29347884,626.96,625.79,0.31959603]
[1740944995573,0.3190047,626.95,625.79,0.31959603]
[1740944995774,0.29347884,626.94,625.79,0.31959603]
[1740944995970,0.61259704,626.93,625.79,0.31959603]
[1740944996175,0.29358216,626.92,625.79,0.31959603]
[1740944997577,0.31901488,626.93,625.79,0.31959603]
[1740944997772,0.29357696,626.92,625.79,0.31959603]
[1740944997977,1.40257696,626.92,625.79,0.31959603]
[1740944998176,0.29357696,626.91,625.79,0.31959603]
[1740944999077,0.31903014,626.9,625.79,0.31959603]
[1740944999576,0.29358223,626.89,625.79,0.31959603]
[1740945002880,0.31904032,626.88,625.79,0.31959603]
[1740945003082,0.29358223,626.87,625.79,0.31959603]
[1740945003375,0.3190505,626.86,625.79,0.31959603]
[1740945003580,0.29358223,626.85,625.79,0.31959603]
[1740945003979,0.31906068,626.84,625.79,0.31959603]
[1740945004179,0.29358223,626.83,625.79,0.31959603]
[1740945004575,0.29358223,626.82,625.79,0.31959603]
[1740945004781,0.29358223,626.81,625.79,0.31959603]
[1740945004976,0.29358223,626.8,625.79,0.31959603]
[1740945005178,0.29358223,626.79,625.79,0.31959603]
[1740945005378,0.29358223,626.78,625.79,0.31959603]
[1740945005578,0.29358223,626.77,625.79,0.31959603]
[1740945005778,0.29358223,626.76,625.79,0.31959603]
[1740945008379,0.29358223,626.76,625.4,1.66787151]
[1740945008580,0.29358223,626.76,625.41,0.31979021]
[1740945008775,0.29363844,626.75,625.41,0.31979021]
[1740945008982,0.29363844,626.76,625.41,0.31979021]
[1740945009181,0.29363844,626.75,625.41,0.31979021]
[1740945009376,0.29363844,626.76,625.41,0.31979021]
[1740945009576,0.29363844,626.75,625.41,0.31979021]
[1740945009779,0.29363844,626.76,625.41,0.31979021]
[1740945009981,0.29363844,626.75,625.41,0.31979021]
[1740945010176,0.29363844,626.74,625.41,0.31979021]
[1740945010376,0.29363844,626.73,625.41,0.31979021]
[1740945010577,0.29363844,626.76,625.41,0.31979021]
[1740945010883,0.29363844,626.75,625.41,0.31979021]
[1740945011184,0.61275003,626.74,625.41,0.31979021]
[1740945011382,0.61275512,626.73,625.41,0.31979021]
[1740945011577,0.61276021,626.72,625.41,0.31979021]
[1740945011882,0.29363844,626.71,625.41,0.31979021]
[1740945012076,1.33563844,626.71,625.41,0.31979021]
[1740945012278,0.29363844,626.7,625.41,0.31979021]
[1740945012986,0.31913705,626.69,625.41,0.31979021]
[1740945013181,0.29363844,626.68,625.41,0.31979021]
[1740945013379,0.29363844,626.67,625.41,0.31979021]
[1740945013577,0.61279077,626.66,625.41,0.31979021]
[1740945013882,0.29363844,626.65,625.41,0.31979021]
[1740945014082,0.29363844,626.64,625.41,0.31979021]
[1740945014283,0.29363844,626.63,625.41,0.31979021]
[1740945014477,0.29363844,626.62,625.41,0.31979021]
[1740945014677,0.29363844,626.65,625.41,0.31979021]
[1740945014879,0.29363844,626.64,625.41,0.31979021]
[1740945015081,0.29383454,626.63,625.41,0.31979021]
[1740945015477,0.29383454,626.62,625.41,0.31979021]
[1740945015679,0.29383454,626.61,625.41,0.31979021]
[1740945015881,0.29383454,626.6,625.41,0.31979021]
[1740945016180,0.29383454,626.59,625.41,0.31979021]
[1740945016378,0.29383454,626.58,625.41,0.31979021]
[1740945016685,0.29383454,626.57,624.84,1.19666743]
[1740945016878,0.29383454,626.57,624.85,0.32007681]
[1740945017077,0.29383454,626.56,624.85,0.32007681]
[1740945017281,0.29383454,626.55,624.85,0.32007681]
[1740945017482,0.29383454,626.54,624.85,0.32007681]
[1740945017686,0.29383454,626.53,624.85,0.32007681]
[1740945017881,0.29383454,626.52,624.85,0.32007681]
[1740945018082,0.29383454,626.51,624.85,0.32007681]
[1740945018482,0.29383454,626.5,624.85,0.32007681]
[1740945018683,0.29383454,626.49,624.85,0.32007681]
[1740945018885,0.29383454,626.48,624.86,0.26434109]
[1740945019081,0.29383454,626.47,624.86,0.26434109]
[1740945019285,0.29383454,626.46,624.85,0.32007681]
[1740945019481,0.29383454,626.45,624.85,0.32007681]
[1740945019686,0.29383454,626.44,624.85,0.32007681]
[1740945019887,0.29383454,626.43,624.85,0.32007681]
[1740945020182,0.29383454,626.42,624.85,0.32007681]
[1740945020389,0.29383454,626.41,624.85,0.32007681]
[1740945020592,0.29383454,626.4,624.85,0.32007681]
[1740945020793,0.29383454,626.39,624.85,0.32007681]
[1740945020989,0.29383454,626.38,624.85,0.32007681]
[1740945021191,0.29383454,626.37,624.85,0.32007681]
[1740945021393,0.29383454,626.36,624.85,0.32007681]
[1740945021588,0.29383454,626.35,624.85,0.32007681]
[1740945021792,0.29383454,626.34,624.85,0.32007681]
[1740945021996,0.29383454,626.33,624.85,0.32007681]
[1740945022196,0.2938794,626.32,624.85,0.32007681]
[1740945022491,0.2938794,626.31,624.85,0.32007681]
[1740945022693,0.2938794,626.3,624.85,0.32007681]
[1740945022893,0.2938794,626.29,624.85,0.32007681]
[1740945023194,0.2938794,626.28,624.85,0.32007681]
[1740945023395,1.22,626.64,624.85,0.32007681]
[1740945023588,0.2938681,626.63,624.85,0.32007681]
[1740945023791,0.2938681,626.62,624.85,0.32007681]
[1740945023993,0.31918289,626.6,624.85,0.32007681]
[1740945024191,0.2938681,626.59,624.85,0.32007681]
[1740945024389,0.31919817,626.57,624.85,0.32007681]
[1740945024588,0.2938681,626.56,624.85,0.32007681]
[1740945024790,0.2938681,626.55,624.85,0.32007681]
[1740945025094,0.2938681,626.54,624.85,0.32007681]
[1740945025294,0.31919817,626.57,624.85,0.32007681]
[1740945025491,0.29387823,626.56,624.85,0.32007681]
[1740945025690,0.29387823,626.55,624.85,0.32007681]
[1740945025892,0.29387823,626.54,624.85,0.32007681]
[1740945026094,0.29387823,626.53,624.85,0.32007681]
[1740945026294,0.31922874,626.51,624.85,0.32007681]
[1740945026494,0.29387823,626.5,624.85,0.32007681]
[1740945026694,0.29387823,626.49,624.85,0.32007681]
[1740945026889,0.29387823,626.48,624.85,0.32007681]
[1740945027092,0.29387823,626.47,624.85,0.32007681]
[1740945027293,0.29387823,626.46,624.85,0.32007681]
[1740945027496,0.29387823,626.45,624.85,0.32007681]
[1740945027693,0.61314264,626.44,624.85,0.32007681]
[1740945027891,0.61314774,626.43,624.85,0.32007681]
[1740945028093,0.61315283,626.42,624.85,0.32007681]
[1740945028290,0.29387823,626.41,624.85,0.32007681]
[1740945028490,0.31928989,626.39,624.85,0.32007681]
[1740945028693,0.29387823,626.38,624.85,0.32007681]
[1740945028894,0.29387823,626.37,624.85,0.32007681]
[1740945029096,0.29387823,626.36,624.85,0.32007681]
[1740945029297,0.31928989,626.39,624.85,0.32007681]
[1740945029298,0.29387823,626.35,624.85,0.32007681]
[1740945029494,0.61319361,626.34,624.85,0.32007681]
[1740945029693,0.61319871,626.33,624.85,0.32007681]
[1740945029896,0.61320381,626.32,624.85,0.32007681]
[1740945030197,0.61320891,626.31,624.85,0.32007681]
[1740945030498,0.61321401,626.3,624.85,0.32007681]
[1740945030691,0.61321911,626.29,624.85,0.32007681]
[1740945030897,1.22,626.64,624.85,0.32007681]
[1740945030898,0.6132242,626.28,624.85,0.32007681]
[1740945031092,0.6132293,626.27,624.85,0.32007681]
[1740945031292,0.6132344,626.26,624.85,0.32007681]
[1740945031595,0.29387823,626.25,624.85,0.32007681]
[1740945031897,0.31936637,626.24,624.85,0.32007681]
[1740945032097,0.29387823,626.23,624.85,0.32007681]
[1740945032398,0.29387823,626.22,624.85,0.32007681]
[1740945032594,1.22,626.64,624.85,0.32007681]
[1740945032595,0.6132599,626.21,624.85,0.32007681]
[1740945032795,0.31938677,626.2,624.85,0.32007681]
[1740945032996,0.29387823,626.19,624.85,0.32007681]
[1740945035197,0.61335392,626.18,624.85,0.32007681]
[1740945035398,0.61335902,626.17,624.85,0.32007681]
[1740945035600,0.61336413,626.16,624.85,0.32007681]
[1740945035800,0.29395695,626.15,624.85,0.32007681]
[1740945036796,0.31940718,626.16,624.85,0.32007681]
[1740945036996,0.29397734,626.14,624.85,0.32007681]
[1740945037201,0.29397734,626.13,624.85,0.32007681]
[1740945037502,0.29397734,626.12,624.85,0.32007681]
[1740945037701,0.61340492,626.12,624.85,0.32007681]
[1740945038001,0.29397734,626.11,624.85,0.32007681]
[1740945038196,0.31943778,626.1,624.85,0.32007681]
[1740945038401,0.29397734,626.09,624.85,0.32007681]
[1740945038602,0.61342023,626.09,624.85,0.32007681]
[1740945038798,0.29397734,626.08,624.85,0.32007681]
[1740945038997,0.31945309,626.07,624.85,0.32007681]
[1740945039203,0.29397734,626.06,624.85,0.32007681]
[1740945040107,0.3194633,626.05,624.85,0.32007681]
[1740945040401,0.29397734,626.04,624.85,0.32007681]
[1740945040604,0.61344574,626.04,624.85,0.32007681]
[1740945040805,0.29397734,626.03,624.85,0.32007681]
[1740945043309,0.2939863,626.02,624.85,0.32007681]
[1740945043612,0.2939863,626.01,624.85,0.32007681]
[1740945044713,1.08,626.0,624.85,0.32007681]
[1740945045013,0.2939863,625.99,624.85,0.32007681]
[1740945046514,0.29400234,625.98,624.85,0.32007681]
[1740945046714,0.29400234,625.99,624.85,0.32007681]
[1740945049823,0.29401072,625.98,624.85,0.32007681]
[1740945050013,0.29401072,625.97,624.85,0.32007681]
[1740945050214,0.29401072,625.96,624.85,0.32007681]
[1740945050415,0.29401072,625.99,624.85,0.32007681]
[1740945052123,0.29400237,625.98,624.85,0.32007681]
[1740945052321,0.29400237,625.97,624.85,0.32007681]
[1740945052522,0.29400237,625.99,624.85,0.32007681]
[1740945052715,0.29400237,625.98,624.85,0.32007681]
[1740945052918,0.29400237,625.99,624.85,0.32007681]
[1740945053117,0.29400237,625.98,624.85,0.32007681]
[1740945053319,0.29400237,625.97,624.85,0.32007681]
[1740945053519,0.29400479,625.96,624.85,0.32007681]
[1740945053816,1.08,626.0,624.85,0.32007681]
[1740945053817,0.29400479,625.95,624.85,0.32007681]
[1740945054017,0.29400479,625.94,624.85,0.32007681]
[1740945054217,0.29400479,625.93,624.85,0.32007681]
[1740945054419,0.29400479,625.92,624.85,0.32007681]
[1740945054619,1.08,626.0,624.85,0.32007681]
[1740945054821,0.29393918,625.99,624.85,0.32007681]
[1740945055021,1.36093918,625.99,624.85,0.32007681]
[1740945055222,0.29393918,625.98,624.85,0.32007681]
[1740945058727,0.29398776,625.97,624.85,0.32007681]
[1740945058925,0.29398776,625.98,624.85,0.32007681]
[1740945059126,0.29398776,625.97,624.85,0.32007681]
[1740945059325,0.29398776,625.98,624.85,0.32007681]
[1740945059520,0.29398776,625.96,624.85,0.32007681]
[1740945059723,0.29398776,625.95,624.85,0.32007681]
[1740945059922,1.067,625.99,624.85,0.32007681]
[1740945059923,0.29398776,625.98,624.85,0.32007681]
[1740945060130,0.29398776,625.97,624.85,0.32007681]
[1740945060327,0.29398776,625.98,624.85,0.32007681]
[1740945060524,0.29398776,625.97,624.85,0.32007681]
[1740945060725,0.29398776,625.96,624.85,0.32007681]
[1740945060927,0.29398776,625.98,624.85,0.32007681]
[1740945061123,0.29398776,625.97,624.85,0.32007681]
[1740945061322,0.29398776,625.98,624.85,0.32007681]
[1740945061524,1.067,625.99,624.85,0.32007681]
[1740945061525,0.29398776,625.97,624.85,0.32007681]
[1740945061725,0.29398776,625.98,624.85,0.32007681]
[1740945061923,0.29398776,625.97,624.85,0.32007681]
[1740945062222,0.29398776,625.96,624.85,0.32007681]
[1740945062425,0.29398776,625.95,624.85,0.32007681]
[1740945062627,0.29398776,625.98,624.85,0.32007681]
[1740945062824,0.29398776,625.97,624.85,0.32007681]
[1740945063127,0.29398776,625.96,624.85,0.32007681]
[1740945063422,0.29398776,625.95,624.85,0.32007681]
[1740945063729,0.29398776,625.94,624.85,0.32007681]
[1740945063928,0.29402393,625.93,624.85,0.32007681]
[1740945064123,0.29402393,625.92,624.85,0.32007681]
[1740945064328,0.29402393,625.94,624.85,0.32007681]
[1740945064523,0.29402393,625.93,624.85,0.32007681]
[1740945064730,0.29402393,625.92,624.85,0.32007681]
[1740945065028,0.29402393,625.91,624.85,0.32007681]
[1740945065227,0.29402393,625.94,624.85,0.32007681]
[1740945065427,0.29402393,625.93,624.85,0.32007681]
[1740945065624,0.29402393,625.92,624.85,0.32007681]
[1740945065824,0.29402393,625.94,624.85,0.32007681]
[1740945066030,0.29402393,625.93,624.85,0.32007681]
[1740945066225,0.29402393,625.92,624.85,0.32007681]
[1740945066430,0.29402393,625.91,624.85,0.32007681]
[1740945066630,0.29402393,625.94,624.85,0.32007681]
[1740945066831,0.29402393,625.93,624.85,0.32007681]
[1740945067130,0.29402393,625.94,624.85,0.32007681]
[1740945067326,0.29402393,625.93,624.85,0.32007681]
[1740945067531,0.29402393,625.92,624.85,0.32007681]
[1740945067731,0.29402393,625.91,624.85,0.32007681]
[1740945067928,0.29402393,625.9,624.85,0.32007681]
[1740945068127,0.29402393,625.94,624.85,0.32007681]
[1740945068333,0.29402393,625.93,624.85,0.32007681]
[1740945068632,0.29402393,625.92,624.85,0.32007681]
[1740945068832,0.29402393,625.91,624.85,0.32007681]
[1740945069026,0.29402393,625.94,624.85,0.32007681]
[1740945069328,0.29402393,625.93,624.85,0.32007681]
[1740945069534,0.29402393,625.94,624.85,0.32007681]
[1740945069734,0.29402393,625.93,624.85,0.32007681]
[1740945069935,0.29402393,625.92,624.85,0.32007681]
[1740945070129,0.29402393,625.94,624.85,0.32007681]
[1740945070328,0.29402393,625.93,624.85,0.32007681]
[1740945070534,0.29402393,625.92,624.85,0.32007681]
[1740945070733,0.29402393,625.94,624.85,0.32007681]
[1740945070932,0.29402393,625.93,624.85,0.32007681]
[1740945071131,0.29402393,625.94,624.85,0.32007681]
[1740945071328,1.053,625.92,624.85,0.32007681]
[1740945071531,0.29402393,625.91,624.85,0.32007681]
[1740945073735,0.29396121,625.9,624.85,0.32007681]
[1740945073935,0.29396121,625.89,624.85,0.32007681]
[1740945074135,0.29396121,625.91,624.85,0.32007681]
[1740945074335,1.053,625.92,624.85,0.32007681]
[1740945074336,0.971,625.88,624.85,0.32007681]
[1740945074535,0.29396121,625.87,624.85,0.32007681]
[1740945075438,0.2939649,625.86,624.85,0.32007681]
[1740945075630,0.2939649,625.87,624.85,0.32007681]
[1740945075834,0.2939649,625.86,624.85,0.32007681]
[1740945076034,0.2939649,625.85,624.85,0.32007681]
[1740945076237,0.2939649,625.84,624.85,0.32007681]
[1740945076436,0.2939649,625.87,624.85,0.32007681]
[1740945076638,0.2939649,625.86,624.85,0.32007681]
[1740945076838,0.2939649,625.87,624.85,0.32007681]
[1740945077038,0.2939649,625.86,624.85,0.32007681]
[1740945077232,0.2939649,625.87,624.85,0.32007681]
[1740945077436,0.2939649,625.86,624.85,0.32007681]
[1740945077633,0.2939649,625.87,624.85,0.32007681]
[1740945077838,0.2939649,625.86,624.85,0.32007681]
[1740945078039,0.2939649,625.85,624.85,0.32007681]
[1740945078239,0.2939649,625.87,624.85,0.32007681]
[1740945078440,0.2939649,625.86,624.85,0.32007681]
[1740945078739,0.971,625.88,624.69,0.32015879]
[1740945078740,0.29395337,625.85,624.69,0.32015879]
[1740945079040,0.29395337,625.84,624.69,0.32015879]
[1740945079241,0.29395337,625.87,624.69,0.32015879]
[1740945079439,0.29395337,625.86,624.69,0.32015879]
[1740945079739,0.971,625.88,624.69,0.32015879]
[1740945079740,0.29395337,625.85,624.69,0.32015879]
[1740945079939,0.29395337,625.87,624.69,0.32015879]
[1740945080138,0.29395337,625.86,624.69,0.32015879]
[1740945080337,0.29395337,625.85,624.69,0.32015879]
[1740945080538,0.29395337,625.87,624.69,0.32015879]
[1740945080733,0.29395337,625.86,624.69,0.32015879]
[1740945080939,0.29395337,625.87,624.69,0.32015879]
[1740945081136,0.29395337,625.86,624.71,1.19666743]
[1740945081437,0.29395337,625.85,624.71,1.19666743]
[1740945081638,0.29395337,625.87,624.72,0.32014342]
[1740945081839,0.29395337,625.86,624.72,0.32014342]
[1740945082035,0.29395337,625.87,624.72,0.32014342]
[1740945082234,0.29395337,625.86,624.72,0.32014342]
[1740945082437,0.971,625.88,624.72,0.32014342]
[1740945082438,0.29395337,625.85,624.72,0.32014342]
[1740945082635,0.29395337,625.84,624.72,0.32014342]
[1740945082839,0.971,625.88,624.72,0.32014342]
[1740945083838,0.971,625.88,624.73,1.19666743]
[1740945084042,0.971,625.88,624.75,0.32012805]
[1740945088839,0.29386864,625.87,624.75,0.32012805]
[1740945089442,1.373,625.86,624.75,0.32012805]
[1740945089644,0.29386864,625.85,624.75,0.32012805]
[1740945090048,1.373,625.86,624.75,0.32012805]
[1740945090241,0.2938739,625.85,624.75,0.32012805]
[1740945090446,0.2938739,625.85,624.77,1.19666743]
[1740945090649,0.2938739,625.85,624.79,0.32010755]
[1740945090850,1.373,625.86,624.79,0.32010755]
[1740945091042,0.29391329,625.85,624.79,0.32010755]
[1740945091943,0.29391329,625.85,624.79,0.31433532]
[1740945093446,0.29393062,625.84,624.79,0.31433532]
[1740945093645,0.29393062,625.85,624.79,0.31433532]
[1740945093846,0.29393062,625.84,624.79,0.31433532]
[1740945094048,0.29393062,625.83,624.79,0.31433532]
[1740945094352,0.29393062,625.82,624.79,0.31433532]
[1740945094551,0.29393062,625.85,624.79,0.31433532]